[Event "Live Chess"]
[Site "Chess.com"]
[Date "2023.05.21"]
[Round "-"]
[White "Tiltador"]
[Black "Tilbs_12"]
[Result "0-1"]
[WhiteElo "858"]
[BlackElo "1577"]
[TimeControl "300"]
[EndTime "2:02:54 PDT"]
[Termination "Tilbs_12 won by checkmate"]

1. e4 {[%clk 0:04:55.8]} 1... c6 {[%clk 0:04:59.1]} 2. Nf3 {[%clk 0:04:54.4]}
2... d5 {[%clk 0:04:58.6]} 3. exd5 {[%clk 0:04:52.2]} 3... cxd5 {[%clk
0:04:58.5]} 4. Bb5+ {[%clk 0:04:49.6]} 4... Nc6 {[%clk 0:04:57.5]} 5. Bxc6+
{[%clk 0:04:44.7]} 5... bxc6 {[%clk 0:04:56.5]} 6. O-O {[%clk 0:04:43.5]} 6...
Nf6 {[%clk 0:04:54.2]} 7. d3 {[%clk 0:04:42.5]} 7... Bg4 {[%clk 0:04:50.3]} 8.
h3 {[%clk 0:04:38.8]} 8... Bh5 {[%clk 0:04:49.2]} 9. Bg5 {[%clk 0:04:31.5]} 9...
e6 {[%clk 0:04:47.7]} 10. Bxf6 {[%clk 0:04:30.4]} 10... Qxf6 {[%clk 0:04:45.8]}
11. Nc3 {[%clk 0:04:29]} 11... Bd6 {[%clk 0:04:42]} 12. Qe1 {[%clk 0:04:02.9]}
12... Qf4 {[%clk 0:04:34.2]} 13. g3 {[%clk 0:03:39.5]} 13... Qxf3 {[%clk
0:04:32.9]} 14. Qe3 {[%clk 0:03:28.6]} 14... Qxe3 {[%clk 0:04:30.8]} 15. fxe3
{[%clk 0:03:26.5]} 15... Bxg3 {[%clk 0:04:27.1]} 16. e4 {[%clk 0:03:17.8]} 16...
Bd6 {[%clk 0:04:11.1]} 17. exd5 {[%clk 0:03:14.2]} 17... cxd5 {[%clk 0:04:09.9]}
18. Nb5 {[%clk 0:03:10.5]} 18... Bc5+ {[%clk 0:03:52.9]} 19. d4 {[%clk
0:03:05.7]} 19... Bb6 {[%clk 0:03:52]} 20. Nd6+ {[%clk 0:02:55.4]} 20... Ke7
{[%clk 0:03:47.8]} 21. Nb5 {[%clk 0:02:47.5]} 21... a6 {[%clk 0:03:43.2]} 22.
Nc3 {[%clk 0:02:44.2]} 22... Bxd4+ {[%clk 0:03:42.2]} 23. Kh1 {[%clk 0:02:36.6]}
23... Bxc3 {[%clk 0:03:41.1]} 24. bxc3 {[%clk 0:02:34.4]} 24... Rhc8 {[%clk
0:03:40.6]} 25. Rab1 {[%clk 0:02:27.2]} 25... Rab8 {[%clk 0:03:38.2]} 26. Rxb8
{[%clk 0:02:25.2]} 26... Rxb8 {[%clk 0:03:37.3]} 27. Rg1 {[%clk 0:02:19.4]}
27... Bg6 {[%clk 0:03:35.3]} 28. Rg2 {[%clk 0:02:15.6]} 28... Rc8 {[%clk
0:03:33.2]} 29. Rg3 {[%clk 0:02:12.2]} 29... Rb8 {[%clk 0:03:32.1]} 30. Kh2
{[%clk 0:02:06.7]} 30... Rb2 {[%clk 0:03:30.7]} 31. c4 {[%clk 0:02:01.1]} 31...
Rxc2+ {[%clk 0:03:29]} 32. Rg2 {[%clk 0:01:58.7]} 32... Rxg2+ {[%clk 0:03:26.9]}
33. Kxg2 {[%clk 0:01:57.2]} 33... dxc4 {[%clk 0:03:26.6]} 34. Kf2 {[%clk
0:01:55.7]} 34... c3 {[%clk 0:03:25]} 35. Ke2 {[%clk 0:01:54.3]} 35... c2 {[%clk
0:03:23.8]} 36. Kd2 {[%clk 0:01:53]} 36... Kd6 {[%clk 0:03:22.8]} 37. Kc1 {[%clk
0:01:50.4]} 37... Kc5 {[%clk 0:03:17.6]} 38. a3 {[%clk 0:01:48.9]} 38... Kd4
{[%clk 0:03:16.5]} 39. a4 {[%clk 0:01:45.6]} 39... Kd3 {[%clk 0:03:12.5]} 40. h4
{[%clk 0:01:42]} 40... e5 {[%clk 0:03:07.8]} 41. a5 {[%clk 0:01:40.6]} 41... e4
{[%clk 0:03:06.8]} 42. Kb2 {[%clk 0:01:23]} 42... Kd2 {[%clk 0:03:03.9]} 43. h5
{[%clk 0:01:16.7]} 43... Bxh5 {[%clk 0:03:01.7]} 44. Kb3 {[%clk 0:01:14]} 44...
c1=Q {[%clk 0:02:57]} 45. Kb4 {[%clk 0:01:12.5]} 45... Qb1+ {[%clk 0:02:53.4]}
46. Kc5 {[%clk 0:01:10.8]} 46... Kd3 {[%clk 0:02:49.3]} 47. Kd6 {[%clk
0:01:06.7]} 47... e3 {[%clk 0:02:44.5]} 48. Ke5 {[%clk 0:01:00.4]} 48... e2
{[%clk 0:02:43.8]} 49. Kf4 {[%clk 0:00:58]} 49... e1=Q {[%clk 0:02:38.7]} 50.
Kg5 {[%clk 0:00:56.9]} 50... Qg1+ {[%clk 0:02:34.3]} 51. Kxh5 {[%clk 0:00:55.1]}
51... Qc2 {[%clk 0:02:29.8]} 52. Kh4 {[%clk 0:00:50.5]} 52... Qch2# {[%clk
0:02:28.7]} 0-1

[Event "Live Chess"]
[Site "Chess.com"]
[Date "2023.05.21"]
[Round "-"]
[White "whitedjohn"]
[Black "TKDRyan"]
[Result "1-0"]
[WhiteElo "1641"]
[BlackElo "1135"]
[TimeControl "300"]
[EndTime "2:03:00 PDT"]
[Termination "whitedjohn won by resignation"]

1. e4 {[%clk 0:04:57.7]} 1... c5 {[%clk 0:04:59.2]} 2. Nf3 {[%clk 0:04:56.2]}
2... d6 {[%clk 0:04:58.9]} 3. d4 {[%clk 0:04:55.1]} 3... cxd4 {[%clk 0:04:57.7]}
4. Nxd4 {[%clk 0:04:54.4]} 4... Nc6 {[%clk 0:04:57.2]} 5. Nc3 {[%clk 0:04:52.7]}
5... e5 {[%clk 0:04:56.2]} 6. Nb3 {[%clk 0:04:47.7]} 6... Be7 {[%clk 0:04:51.1]}
7. Be2 {[%clk 0:04:46.4]} 7... Nf6 {[%clk 0:04:50.7]} 8. Be3 {[%clk 0:04:44.7]}
8... O-O {[%clk 0:04:49.6]} 9. f3 {[%clk 0:04:43.7]} 9... h6 {[%clk 0:04:49.2]}
10. Qd2 {[%clk 0:04:42.5]} 10... a6 {[%clk 0:04:44.7]} 11. O-O-O {[%clk
0:04:41.3]} 11... Be6 {[%clk 0:04:43.3]} 12. g4 {[%clk 0:04:38]} 12... Bxb3
{[%clk 0:04:41.6]} 13. axb3 {[%clk 0:04:36.9]} 13... Qa5 {[%clk 0:04:40.2]} 14.
Kb1 {[%clk 0:04:35.4]} 14... Nb4 {[%clk 0:04:27.7]} 15. h4 {[%clk 0:04:27.4]}
15... Rac8 {[%clk 0:04:26.4]} 16. Na4 {[%clk 0:04:23.5]} 16... b5 {[%clk
0:04:23.9]} 17. Bb6 {[%clk 0:04:20.8]} 17... Rxc2 {[%clk 0:04:16.6]} 18. Bxa5
{[%clk 0:04:17.3]} 18... Rxd2 {[%clk 0:04:14.8]} 19. Rxd2 {[%clk 0:04:16.2]}
19... d5 {[%clk 0:04:09.1]} 20. Nc3 {[%clk 0:04:06]} 20... d4 {[%clk 0:04:04.7]}
21. Bxb4 {[%clk 0:03:57.3]} 21... Bxb4 {[%clk 0:04:03.7]} 22. Kc2 {[%clk
0:03:45]} 22... Rc8 {[%clk 0:03:58.5]} 23. Rd3 {[%clk 0:03:34.1]} 23... dxc3
{[%clk 0:03:54.3]} 24. bxc3 {[%clk 0:03:33]} 24... Ba3 {[%clk 0:03:31.1]} 25.
Ra1 {[%clk 0:03:29.5]} 25... b4 {[%clk 0:03:29.2]} 26. c4 {[%clk 0:03:27.3]}
26... Nd7 {[%clk 0:03:23.2]} 27. Rxd7 {[%clk 0:03:25.3]} 27... Kh7 {[%clk
0:03:21.6]} 28. Ra7 {[%clk 0:03:23.4]} 28... Rd8 {[%clk 0:03:16.2]} 29. Rxa6
{[%clk 0:03:20.9]} 29... g6 {[%clk 0:03:12.7]} 30. R6xa3 {[%clk 0:03:19.3]}
30... bxa3 {[%clk 0:03:11.4]} 31. Rxa3 {[%clk 0:03:18.2]} 31... f5 {[%clk
0:03:10.5]} 32. exf5 {[%clk 0:03:16.1]} 32... gxf5 {[%clk 0:03:10.4]} 33. gxf5
{[%clk 0:03:14.3]} 1-0

[Event "Live Chess"]
[Site "Chess.com"]
[Date "2023.05.21"]
[Round "-"]
[White "raminguy"]
[Black "AbilifyXL"]
[Result "1-0"]
[WhiteElo "1976"]
[BlackElo "1939"]
[TimeControl "300"]
[EndTime "2:03:13 PDT"]
[Termination "raminguy won by resignation"]

1. d4 {[%clk 0:04:58]} 1... d5 {[%clk 0:04:59.9]} 2. Nc3 {[%clk 0:04:57.1]} 2...
c6 {[%clk 0:04:59.2]} 3. Bf4 {[%clk 0:04:55.7]} 3... Nf6 {[%clk 0:04:53.8]} 4.
e3 {[%clk 0:04:54.2]} 4... Bg4 {[%clk 0:04:52.4]} 5. f3 {[%clk 0:04:53.3]} 5...
Bf5 {[%clk 0:04:51.2]} 6. h4 {[%clk 0:04:53.2]} 6... h5 {[%clk 0:04:50]} 7. Bd3
{[%clk 0:04:51.7]} 7... Bxd3 {[%clk 0:04:48.1]} 8. Qxd3 {[%clk 0:04:51.6]} 8...
e6 {[%clk 0:04:47.8]} 9. Nge2 {[%clk 0:04:50.6]} 9... Bd6 {[%clk 0:04:47]} 10.
O-O-O {[%clk 0:04:50]} 10... Qc7 {[%clk 0:04:45.9]} 11. Rde1 {[%clk 0:04:45.8]}
11... Nbd7 {[%clk 0:04:44.9]} 12. Bxd6 {[%clk 0:04:42.3]} 12... Qxd6 {[%clk
0:04:44]} 13. e4 {[%clk 0:04:42]} 13... dxe4 {[%clk 0:04:34.2]} 14. Nxe4 {[%clk
0:04:40.4]} 14... Nxe4 {[%clk 0:04:32.8]} 15. Qxe4 {[%clk 0:04:39.3]} 15... Nf6
{[%clk 0:04:30.7]} 16. Qd3 {[%clk 0:04:38]} 16... O-O-O {[%clk 0:04:29.4]} 17.
Qb3 {[%clk 0:04:20.9]} 17... Rhe8 {[%clk 0:04:21.5]} 18. Rd1 {[%clk 0:04:18.9]}
18... Qd5 {[%clk 0:04:17.2]} 19. Qa3 {[%clk 0:04:15]} 19... Kb8 {[%clk
0:04:14.9]} 20. Nc3 {[%clk 0:04:13.1]} 20... Qc4 {[%clk 0:04:05.6]} 21. Qa4
{[%clk 0:03:26.5]} 21... Qxa4 {[%clk 0:03:51.9]} 22. Nxa4 {[%clk 0:03:26.4]}
22... Rd5 {[%clk 0:03:44.2]} 23. c4 {[%clk 0:03:21.2]} 23... Rd6 {[%clk
0:03:39.9]} 24. c5 {[%clk 0:03:09.2]} 24... Rd5 {[%clk 0:03:38.1]} 25. Nc3
{[%clk 0:03:08.3]} 25... Rd7 {[%clk 0:03:35.8]} 26. Rd2 {[%clk 0:02:59.5]} 26...
Red8 {[%clk 0:03:34]} 27. Rhd1 {[%clk 0:02:59.1]} 27... Nd5 {[%clk 0:03:32.1]}
28. Ne4 {[%clk 0:02:50.6]} 28... Ne3 {[%clk 0:03:21.5]} 29. Re1 {[%clk
0:02:44.6]} 29... Nf5 {[%clk 0:03:20.5]} 30. Red1 {[%clk 0:02:22.5]} 30... Rxd4
{[%clk 0:02:54.7]} 31. Ng5 {[%clk 0:02:06.5]} 31... Rxd2 {[%clk 0:02:52.1]} 32.
Rxd2 {[%clk 0:02:03.9]} 32... Rxd2 {[%clk 0:02:48.7]} 33. Kxd2 {[%clk
0:02:02.5]} 33... Nxh4 {[%clk 0:02:47.7]} 34. g3 {[%clk 0:01:58.8]} 34... Nf5
{[%clk 0:02:46.2]} 35. g4 {[%clk 0:01:54.5]} 35... hxg4 {[%clk 0:02:45.1]} 36.
fxg4 {[%clk 0:01:54.4]} 36... Ne7 {[%clk 0:02:11.9]} 37. Nxf7 {[%clk 0:01:52.1]}
37... Kc7 {[%clk 0:02:07.7]} 38. Ne5 {[%clk 0:01:48.5]} 38... Nd5 {[%clk
0:02:02.2]} 39. a3 {[%clk 0:01:44.6]} 39... Kd8 {[%clk 0:01:59.1]} 40. b4 {[%clk
0:01:41.4]} 40... Ke7 {[%clk 0:01:58.2]} 41. g5 {[%clk 0:01:38]} 41... Nf4
{[%clk 0:01:46.6]} 42. Ke3 {[%clk 0:01:20.2]} 42... Nh3 {[%clk 0:01:45.4]} 43.
Nf3 {[%clk 0:01:19.3]} 43... e5 {[%clk 0:01:38.9]} 44. Ke4 {[%clk 0:01:17.7]}
44... Ke6 {[%clk 0:01:37.5]} 45. a4 {[%clk 0:01:09.4]} 45... a5 {[%clk
0:01:36.3]} 46. bxa5 {[%clk 0:01:04.2]} 46... g6 {[%clk 0:01:35.1]} 47. Nxe5
{[%clk 0:00:58.5]} 47... Nxg5+ {[%clk 0:01:34]} 48. Kf4 {[%clk 0:00:57.6]} 48...
Nh3+ {[%clk 0:01:26.6]} 49. Ke4 {[%clk 0:00:56.6]} 49... Ng5+ {[%clk 0:01:25.7]}
50. Kd4 {[%clk 0:00:55.3]} 50... Kf5 {[%clk 0:01:19.7]} 51. Nxc6 {[%clk
0:00:52.8]} 51... Ne6+ {[%clk 0:01:17.1]} 52. Kd5 {[%clk 0:00:51]} 52... bxc6+
{[%clk 0:01:16.1]} 53. Kxc6 {[%clk 0:00:50]} 53... Nd4+ {[%clk 0:01:11.6]} 54.
Kb6 {[%clk 0:00:46.4]} 54... g5 {[%clk 0:01:04.8]} 55. a6 {[%clk 0:00:45.7]}
55... g4 {[%clk 0:01:01.5]} 56. a7 {[%clk 0:00:45.2]} 56... g3 {[%clk
0:01:00.3]} 57. a8=Q {[%clk 0:00:44.4]} 57... Kf4 {[%clk 0:00:56.1]} 58. Qg2
{[%clk 0:00:43.6]} 1-0

[Event "Live Chess"]
[Site "Chess.com"]
[Date "2023.05.21"]
[Round "-"]
[White "stevochess11"]
[Black "Duke_of_Bebington"]
[Result "1-0"]
[WhiteElo "1732"]
[BlackElo "1589"]
[TimeControl "300"]
[EndTime "2:03:24 PDT"]
[Termination "stevochess11 won by resignation"]

1. d4 {[%clk 0:04:55.3]} 1... d5 {[%clk 0:04:58.1]} 2. Nf3 {[%clk 0:04:53.6]}
2... Nf6 {[%clk 0:04:55.3]} 3. e3 {[%clk 0:04:52.4]} 3... Bf5 {[%clk 0:04:52.9]}
4. c4 {[%clk 0:04:51.3]} 4... c6 {[%clk 0:04:51.6]} 5. cxd5 {[%clk 0:04:49.4]}
5... cxd5 {[%clk 0:04:49.1]} 6. Qb3 {[%clk 0:04:48.2]} 6... Qc7 {[%clk
0:04:44.5]} 7. Bb5+ {[%clk 0:04:41.2]} 7... Nbd7 {[%clk 0:04:42.2]} 8. Bd2
{[%clk 0:04:37.9]} 8... a6 {[%clk 0:04:36.2]} 9. Bxd7+ {[%clk 0:04:32.8]} 9...
Nxd7 {[%clk 0:04:33.9]} 10. O-O {[%clk 0:04:24.9]} 10... e6 {[%clk 0:04:32.5]}
11. Nc3 {[%clk 0:04:22.5]} 11... Bd6 {[%clk 0:04:30.4]} 12. Rac1 {[%clk
0:04:20.8]} 12... O-O {[%clk 0:04:27.5]} 13. Nxd5 {[%clk 0:04:18.8]} 13... Qd8
{[%clk 0:04:21.9]} 14. Nc3 {[%clk 0:04:09.6]} 14... b5 {[%clk 0:04:14.9]} 15. e4
{[%clk 0:04:06.6]} 15... Bg6 {[%clk 0:04:12.1]} 16. e5 {[%clk 0:04:04.8]} 16...
Bc7 {[%clk 0:04:10.9]} 17. Bg5 {[%clk 0:03:54.8]} 17... Qb8 {[%clk 0:03:57.4]}
18. Nh4 {[%clk 0:03:48.8]} 18... Qb6 {[%clk 0:03:53.1]} 19. Nxg6 {[%clk
0:03:46]} 19... hxg6 {[%clk 0:03:51.1]} 20. Be3 {[%clk 0:03:42.1]} 20... f6
{[%clk 0:03:45.6]} 21. d5 {[%clk 0:03:39.7]} 21... Rae8 {[%clk 0:03:30.5]} 22.
Bxb6 {[%clk 0:03:38.1]} 22... Nxb6 {[%clk 0:03:28.4]} 23. dxe6 {[%clk
0:03:36.9]} 1-0

[Event "Live Chess"]
[Site "Chess.com"]
[Date "2023.05.21"]
[Round "-"]
[White "Bot_Boy"]
[Black "RichardABates"]
[Result "0-1"]
[WhiteElo "334"]
[BlackElo "2139"]
[TimeControl "300"]
[EndTime "2:03:35 PDT"]
[Termination "RichardABates won on time"]

1. Nf3 {[%clk 0:04:56.2]} 1... Nf6 {[%clk 0:04:58.4]} 2. Nc3 {[%clk 0:04:53]}
2... d5 {[%clk 0:04:56.4]} 3. d4 {[%clk 0:04:46.2]} 3... c5 {[%clk 0:04:51.3]}
4. Bf4 {[%clk 0:04:40.2]} 4... Nc6 {[%clk 0:04:47.9]} 5. dxc5 {[%clk 0:04:34.1]}
5... d4 {[%clk 0:04:35.6]} 6. Na4 {[%clk 0:04:10.7]} 6... e5 {[%clk 0:04:31.7]}
7. Bg3 {[%clk 0:04:00.4]} 7... Qa5+ {[%clk 0:04:21.8]} 8. Nc3 {[%clk 0:03:26.1]}
8... dxc3 {[%clk 0:04:19.3]} 9. bxc3 {[%clk 0:03:22.2]} 9... Bxc5 {[%clk
0:04:16.8]} 10. Rc1 {[%clk 0:02:28.2]} 10... e4 {[%clk 0:04:10]} 11. Ne5 {[%clk
0:02:12.1]} 11... Qxc3+ {[%clk 0:04:07.5]} 12. Qd2 {[%clk 0:02:03.2]} 12... Bb4
{[%clk 0:04:03]} 13. Bf4 {[%clk 0:01:36.9]} 13... Qxd2+ {[%clk 0:03:52.8]} 14.
Bxd2 {[%clk 0:01:34.5]} 14... Bxd2+ {[%clk 0:03:51.2]} 15. Kxd2 {[%clk
0:01:33.4]} 15... Nxe5 {[%clk 0:03:50.4]} 16. e3 {[%clk 0:01:22.8]} 16... O-O
{[%clk 0:03:45.2]} 17. c4 {[%clk 0:00:56.7]} 17... Bg4 {[%clk 0:03:40.6]} 18. h3
{[%clk 0:00:36.4]} 18... Rfd8+ {[%clk 0:03:37.2]} 19. Kc2 {[%clk 0:00:34.9]}
19... Be6 {[%clk 0:03:31.7]} 20. Be2 {[%clk 0:00:25.5]} 20... Bxc4 {[%clk
0:03:29.3]} 21. Bxc4 {[%clk 0:00:14.5]} 21... Nxc4 {[%clk 0:03:27.9]} 22. Kc3
{[%clk 0:00:11]} 22... Rac8 {[%clk 0:03:25.6]} 23. Kb4 {[%clk 0:00:04.8]} 23...
a5+ {[%clk 0:03:23.2]} 24. Kb5 {[%clk 0:00:00.8]} 24... Rd5+ {[%clk 0:03:20.2]}
0-1

[Event "Live Chess"]
[Site "Chess.com"]
[Date "2023.05.21"]
[Round "-"]
[White "lateforthesky"]
[Black "SupremeTactician"]
[Result "1-0"]
[WhiteElo "2128"]
[BlackElo "2268"]
[TimeControl "300"]
[EndTime "2:03:54 PDT"]
[Termination "lateforthesky won by resignation"]

1. e4 {[%clk 0:04:57.6]} 1... e5 {[%clk 0:04:58.5]} 2. Nf3 {[%clk 0:04:56.2]}
2... Nc6 {[%clk 0:04:57.8]} 3. Bb5 {[%clk 0:04:55.1]} 3... a6 {[%clk 0:04:57.1]}
4. Ba4 {[%clk 0:04:54]} 4... Nf6 {[%clk 0:04:56.2]} 5. d4 {[%clk 0:04:51.3]}
5... exd4 {[%clk 0:04:55.1]} 6. O-O {[%clk 0:04:48.3]} 6... Nxe4 {[%clk
0:04:53.9]} 7. Re1 {[%clk 0:04:42.2]} 7... d5 {[%clk 0:04:52.9]} 8. Nxd4 {[%clk
0:04:40.5]} 8... Be7 {[%clk 0:04:37.2]} 9. Nxc6 {[%clk 0:04:37.9]} 9... bxc6
{[%clk 0:04:36.8]} 10. Bxc6+ {[%clk 0:04:35.7]} 10... Bd7 {[%clk 0:04:36.6]} 11.
Bxd5 {[%clk 0:04:28.7]} 11... Nf6 {[%clk 0:04:31.9]} 12. Bxa8 {[%clk 0:04:25.8]}
12... Qxa8 {[%clk 0:04:31.8]} 13. Bg5 {[%clk 0:04:08.5]} 13... O-O {[%clk
0:04:30.6]} 14. Rxe7 {[%clk 0:04:06.3]} 14... Be6 {[%clk 0:04:29.8]} 15. Bxf6
{[%clk 0:04:02.8]} 15... gxf6 {[%clk 0:04:29.7]} 16. Nc3 {[%clk 0:03:32.4]}
16... Kh8 {[%clk 0:04:27.5]} 17. Qf3 {[%clk 0:03:23.9]} 17... Qd8 {[%clk
0:04:24.9]} 18. Qxf6+ {[%clk 0:03:22.5]} 18... Kg8 {[%clk 0:04:23.9]} 19. Rd1
{[%clk 0:03:13.4]} 19... Qb8 {[%clk 0:04:19.4]} 20. Rd3 {[%clk 0:03:05.6]} 1-0

[Event "Live Chess"]
[Site "Chess.com"]
[Date "2023.05.21"]
[Round "-"]
[White "JohanKjeldahl"]
[Black "Shepherds_Pie"]
[Result "0-1"]
[WhiteElo "1888"]
[BlackElo "1933"]
[TimeControl "300"]
[EndTime "2:03:59 PDT"]
[Termination "Shepherds_Pie won by checkmate"]

1. c4 {[%clk 0:04:57.2]} 1... Nf6 {[%clk 0:04:58.4]} 2. Nc3 {[%clk 0:04:56.2]}
2... c5 {[%clk 0:04:57.2]} 3. Nf3 {[%clk 0:04:53.6]} 3... d5 {[%clk 0:04:54.9]}
4. cxd5 {[%clk 0:04:51.8]} 4... Nxd5 {[%clk 0:04:53.6]} 5. e3 {[%clk 0:04:50.7]}
5... g6 {[%clk 0:04:51.5]} 6. Bc4 {[%clk 0:04:48.7]} 6... Nxc3 {[%clk 0:04:46]}
7. bxc3 {[%clk 0:04:46.4]} 7... Bg7 {[%clk 0:04:44.8]} 8. d4 {[%clk 0:04:45.3]}
8... O-O {[%clk 0:04:43.2]} 9. O-O {[%clk 0:04:43.5]} 9... Qc7 {[%clk
0:04:41.4]} 10. Be2 {[%clk 0:04:35.9]} 10... Rd8 {[%clk 0:04:38.8]} 11. Bb2
{[%clk 0:04:33.8]} 11... Nc6 {[%clk 0:04:36.4]} 12. Rc1 {[%clk 0:04:32.1]} 12...
Na5 {[%clk 0:04:34.1]} 13. Qa4 {[%clk 0:04:28.8]} 13... b6 {[%clk 0:04:30.9]}
14. Nd2 {[%clk 0:04:22.1]} 14... Bb7 {[%clk 0:04:24.6]} 15. Bf3 {[%clk
0:04:21.1]} 15... Rac8 {[%clk 0:04:19]} 16. Bxb7 {[%clk 0:04:05.3]} 16... Nxb7
{[%clk 0:04:16.7]} 17. Nf3 {[%clk 0:03:59.9]} 17... Na5 {[%clk 0:04:15.1]} 18.
Rfd1 {[%clk 0:03:53.8]} 18... a6 {[%clk 0:04:07.9]} 19. h3 {[%clk 0:03:51.9]}
19... b5 {[%clk 0:04:06.2]} 20. Qc2 {[%clk 0:03:50.7]} 20... Nc4 {[%clk
0:04:03.9]} 21. Ba1 {[%clk 0:03:45.8]} 21... cxd4 {[%clk 0:03:58.6]} 22. cxd4
{[%clk 0:03:43.4]} 22... Qb6 {[%clk 0:03:51.8]} 23. Qe2 {[%clk 0:03:40.2]} 23...
Nd6 {[%clk 0:03:43.4]} 24. Rxc8 {[%clk 0:03:36.6]} 24... Rxc8 {[%clk 0:03:41.7]}
25. Qd3 {[%clk 0:03:30.3]} 25... Qb7 {[%clk 0:03:39.2]} 26. Bb2 {[%clk
0:03:20.2]} 26... Qd5 {[%clk 0:03:36.1]} 27. Qb3 {[%clk 0:03:15.8]} 27... Qxb3
{[%clk 0:03:32.7]} 28. axb3 {[%clk 0:03:13.6]} 28... Rc2 {[%clk 0:03:30.9]} 29.
Ba3 {[%clk 0:03:11.1]} 29... Nb7 {[%clk 0:03:21.7]} 30. Bxe7 {[%clk 0:03:07.1]}
30... Na5 {[%clk 0:03:18.5]} 31. b4 {[%clk 0:03:04.3]} 31... Nc4 {[%clk
0:03:16.9]} 32. Ra1 {[%clk 0:03:02.3]} 32... Bf8 {[%clk 0:03:05.2]} 33. Bxf8
{[%clk 0:02:58.3]} 33... Kxf8 {[%clk 0:03:04.1]} 34. Rxa6 {[%clk 0:02:57.6]}
34... Rb2 {[%clk 0:03:02.9]} 35. Ra8+ {[%clk 0:02:53.4]} 35... Kg7 {[%clk
0:03:01.5]} 36. Rb8 {[%clk 0:02:42.3]} 36... Rxb4 {[%clk 0:02:59.6]} 37. Kh2
{[%clk 0:02:39.3]} 37... Nd6 {[%clk 0:02:54.5]} 38. Ne5 {[%clk 0:02:36.7]} 38...
Rb2 {[%clk 0:02:49.8]} 39. Kg3 {[%clk 0:02:35.4]} 39... Ne4+ {[%clk 0:02:45.7]}
40. Kf3 {[%clk 0:02:33.9]} 40... f5 {[%clk 0:02:39.2]} 41. h4 {[%clk 0:02:29]}
41... Rxf2# {[%clk 0:02:37.5]} 0-1

[Event "Live Chess"]
[Site "Chess.com"]
[Date "2023.05.21"]
[Round "-"]
[White "Doge_Dandolo"]
[Black "zdanevych"]
[Result "1/2-1/2"]
[WhiteElo "1874"]
[BlackElo "1540"]
[TimeControl "300"]
[EndTime "2:04:04 PDT"]
[Termination "Game drawn by repetition"]

1. Nf3 {[%clk 0:04:58.1]} 1... d5 {[%clk 0:04:58.5]} 2. c4 {[%clk 0:04:56.6]}
2... c6 {[%clk 0:04:56.7]} 3. g3 {[%clk 0:04:53.2]} 3... Nf6 {[%clk 0:04:53.7]}
4. Bg2 {[%clk 0:04:48.6]} 4... Bg4 {[%clk 0:04:51.4]} 5. O-O {[%clk 0:04:38.1]}
5... e6 {[%clk 0:04:49.6]} 6. Qb3 {[%clk 0:04:32.2]} 6... b6 {[%clk 0:04:46]} 7.
d4 {[%clk 0:04:19.9]} 7... Bd6 {[%clk 0:04:34.8]} 8. Bf4 {[%clk 0:04:16.5]} 8...
O-O {[%clk 0:04:26.8]} 9. Bxd6 {[%clk 0:04:11.5]} 9... Qxd6 {[%clk 0:04:25.2]}
10. Re1 {[%clk 0:04:10.8]} 10... Nbd7 {[%clk 0:04:10.9]} 11. Nbd2 {[%clk
0:04:05.4]} 11... Rad8 {[%clk 0:03:54.8]} 12. Rad1 {[%clk 0:04:03.6]} 12... Bxf3
{[%clk 0:03:51.6]} 13. Nxf3 {[%clk 0:04:00.4]} 13... Ne4 {[%clk 0:03:50.5]} 14.
Nd2 {[%clk 0:03:55.9]} 14... Nxd2 {[%clk 0:03:43.7]} 15. Rxd2 {[%clk 0:03:52.2]}
15... Nf6 {[%clk 0:03:40.3]} 16. cxd5 {[%clk 0:03:48.4]} 16... cxd5 {[%clk
0:03:34]} 17. Rc2 {[%clk 0:03:47.1]} 17... Rc8 {[%clk 0:03:30.8]} 18. Rec1
{[%clk 0:03:46]} 18... Rxc2 {[%clk 0:03:29.1]} 19. Rxc2 {[%clk 0:03:44.2]} 19...
h6 {[%clk 0:03:21.3]} 20. e3 {[%clk 0:03:42.2]} 20... Ne4 {[%clk 0:03:16.7]} 21.
Bxe4 {[%clk 0:03:34.1]} 21... dxe4 {[%clk 0:03:15.6]} 22. Qc4 {[%clk 0:03:32.6]}
22... Qd5 {[%clk 0:03:08.1]} 23. b4 {[%clk 0:03:29.3]} 23... f5 {[%clk
0:02:59.4]} 24. a4 {[%clk 0:03:26.6]} 24... Qd7 {[%clk 0:02:51.7]} 25. b5 {[%clk
0:03:24.3]} 25... Kf7 {[%clk 0:02:49.1]} 26. Qc7 {[%clk 0:03:20.4]} 26... Rd8
{[%clk 0:02:45.5]} 27. Kf1 {[%clk 0:03:15.6]} 27... Ke7 {[%clk 0:02:43.2]} 28.
Ke2 {[%clk 0:03:12.7]} 28... Qxc7 {[%clk 0:02:41.5]} 29. Rxc7+ {[%clk
0:03:11.3]} 29... Rd7 {[%clk 0:02:41.4]} 30. Rc6 {[%clk 0:03:10.3]} 30... Rd6
{[%clk 0:02:36.9]} 31. Rc4 {[%clk 0:03:06.1]} 31... Kd7 {[%clk 0:02:31.7]} 32.
h4 {[%clk 0:03:02.3]} 32... Ke7 {[%clk 0:02:23.8]} 33. Kd2 {[%clk 0:03:00.7]}
33... Rd7 {[%clk 0:02:16.8]} 34. Kc3 {[%clk 0:02:58.7]} 34... Kd8 {[%clk
0:02:15.7]} 35. h5 {[%clk 0:02:52.6]} 35... Rc7 {[%clk 0:02:14.6]} 36. Rxc7
{[%clk 0:02:50.7]} 36... Kxc7 {[%clk 0:02:14.5]} 37. Kc4 {[%clk 0:02:49.4]}
37... Kd6 {[%clk 0:02:13.7]} 38. Kc3 {[%clk 0:02:41]} 38... e5 {[%clk
0:02:12.3]} 39. dxe5+ {[%clk 0:02:37.1]} 39... Kxe5 {[%clk 0:02:12.2]} 40. Kc4
{[%clk 0:02:36]} 40... Ke6 {[%clk 0:02:03.6]} 41. Kd4 {[%clk 0:02:32.5]} 41...
Kd6 {[%clk 0:02:02.6]} 42. Kc4 {[%clk 0:02:29.3]} 42... Ke6 {[%clk 0:02:00.4]}
43. Kc3 {[%clk 0:02:25.7]} 43... Kd5 {[%clk 0:01:56.5]} 44. Kb3 {[%clk
0:02:22.8]} 44... Kd6 {[%clk 0:01:51.3]} 45. Kb4 {[%clk 0:02:18.4]} 45... Kd5
{[%clk 0:01:38.2]} 46. a5 {[%clk 0:02:13.9]} 46... Kd6 {[%clk 0:01:30.6]} 47.
axb6 {[%clk 0:02:11.5]} 47... axb6 {[%clk 0:01:30.5]} 48. Kc4 {[%clk 0:02:09.3]}
48... Ke6 {[%clk 0:01:27.4]} 49. Kd4 {[%clk 0:02:07.7]} 49... Kd6 {[%clk
0:01:26.4]} 50. Kc4 {[%clk 0:02:06.8]} 50... Ke6 {[%clk 0:01:25.3]} 51. Kd4
{[%clk 0:02:05.3]} 51... Kd6 {[%clk 0:01:24.4]} 52. Kc4 {[%clk 0:02:04.5]}
1/2-1/2